[Event "26th Troya Open 2018"]
[Site "Canakkale"]
[Date "2018.08.05"]
[Round "4.19"]
[White "Bozkurt, Serkan"]
[Black "Yilmaz, Kerem Tuna"]
[Result "1-0"]
[ECO "D11"]
[WhiteElo "1610"]
[BlackElo "1500"]
[Annotator "NA RC"]
[PlyCount "53"]
[EventDate "2018.08.06"]
[EventType "swiss"]
[EventCountry "TUR"]
[SourceTitle "playchess.com"]
[Source "ChessBase"]
[SourceQuality "1"]
[TimeControl "5400+30"]

1. d4 Nf6 2. Nf3 d5 3. g3 Bf5 4. Bg2 {[%emt 0:00:00]} e6 {[%emt 0:03:00]} 5. O-O {[%emt 0:00:30]} Bd6 {[%emt 0:01:30]} 6. c4 {[%emt 0:00:30]} c6 {[%emt 0:00:30]} 7. Qb3 {[%emt 0:04:30]} Qc8 {[%emt 0:03:30]} 8. Nc3 {[%emt 0:01:30]} O-O {[%emt 0:02:30]} 9. Nh4 {[%emt 0:01:30]} Bg6 {[%emt 0:01:30]} 10. Nxg6 {[%emt 0:04:30]} hxg6 {[%emt 0:00:30]} 11. Bh3 {[%emt 0:00:30]} Nbd7 {[%emt 0:04:30]} 12. Bg5 {[%emt 0:05:30]} Qb8 {[%emt 0:04:30]} 13. Rfe1 {[%emt 0:06:30]} Nh7 {[%emt 0:07:30]} 14. Bd2 {[%emt 0:01:30]} f5 {[%emt 0:07:30]} 15. e4 {[%emt 0:05:30]} f4 {[%emt 0:16:30]} 16. Bxe6+ {[%emt 0:05:30]} Kh8 {[%emt 0:03:30]} 17. e5 {[%emt 0:01:30]} Nxe5 {[%emt 0:05:30]} 18. dxe5 {[%emt 0:00:30]} Bxe5 {[%emt 0:00:30]} 19. Ne2 {[%emt 0:02:30]} Ng5 {[%emt 0:00:30]} 20. Bg4 {[%emt 0:03:30]} dxc4 {[%emt 0:15:30]} 21. Qxc4 {[%emt 0:06:30]} fxg3 {[%emt 0:01:30]} 22. hxg3 {[%emt 0:03:30]} b5 {[%emt 0:08:11]} 23. Qc2 {[%emt 0:05:30]} Nf3+ {[%emt 0:01:24]} 24. Bxf3 {[%emt 0:00:30]} Rxf3 {[%emt 0:01:13]} 25. Kg2 {[%emt 0:00:30]} Qf8 {[%emt 0:03:15]} 26. Nf4 {[%emt 0:02:30]} Bxf4 {[%emt 0:00:30]} 27. Bxf4 {[%emt 0:00:00]} 1-0

[Event "26th Troya Open 2018"]
[Site "Canakkale"]
[Date "2018.08.05"]
[Round "4.20"]
[White "Zaimov, Berk"]
[Black "Erke, Mustafa Yigit"]
[Result "0-1"]
[ECO "C24"]
[WhiteElo "1439"]
[BlackElo "1599"]
[Annotator "NA RC"]
[PlyCount "60"]
[EventDate "2018.08.06"]
[EventType "swiss"]
[EventCountry "TUR"]
[SourceTitle "playchess.com"]
[Source "ChessBase"]
[SourceQuality "1"]
[TimeControl "5400+30"]

1. e4 e5 2. Nf3 Nc6 3. Bc4 Nf6 4. d3 {[%emt 0:03:00]} d5 {[%emt 0:01:00]} 5. Bxd5 {[%emt 0:00:30]} Nxd5 {[%emt 0:00:30]} 6. exd5 {[%emt 0:00:30]} Qxd5 {[%emt 0:00:30]} 7. h3 {[%emt 0:00:30]} e4 {[%emt 0:00:30]} 8. Qe2 {[%emt 0:04:30]} Bf5 {[%emt 0:01:30]} 9. Nbd2 {[%emt 0:05:30]} Bb4 {[%emt 0:17:30]} 10. dxe4 {[%emt 0:08:30]} Qxe4 {[%emt 0:04:30]} 11. Qxe4+ {[%emt 0:00:30]} Bxe4 {[%emt 0:00:30]} 12. c3 {[%emt 0:00:30]} Bd3 {[%emt 0:03:30]} 13. cxb4 {[%emt 0:05:30]} Nxb4 {[%emt 0:12:30]} 14. Nd4 {[%emt 0:00:00]} O-O-O {[%emt 0:00:30]} 15. a3 {[%emt 0:00:00]} Rhe8+ {[%emt 0:08:30]} 16. Kd1 {[%emt 0:00:30]} Na6 {[%emt 0:00:30]} 17. N4f3 {[%emt 0:01:30]} Re2 {[%emt 0:02:30]} 18. Ne1 {[%emt 0:08:30]} Rxf2 {[%emt 0:02:30]} 19. Nxd3 {[%emt 0:00:30]} Rxd3 {[%emt 0:00:00]} 20. Rg1 {[%emt 0:00:30]} Rg3 {[%emt 0:01:00]} 21. Ne4 {[%emt 0:01:30]} Rfxg2 {[%emt 0:04:30]} 22. Rxg2 {[%emt 0:04:30]} Rxg2 {[%emt 0:00:00]} 23. Bd2 {[%emt 0:03:30]} f5 {[%emt 0:00:00]} 24. Nc3 {[%emt 0:00:30]} Nc5 {[%emt 0:00:30]} 25. Kc2 {[%emt 0:01:30]} Rxd2+ {[%emt 0:00:30]} 26. Kxd2 {[%emt 0:00:30]} Nb3+ {[%emt 0:00:30]} 27. Kd3 {[%emt 0:00:30]} Nxa1 {[%emt 0:00:30]} 28. Nd5 {[%emt 0:00:30]} Nb3 {[%emt 0:00:30]} 29. Ne7+ {[%emt 0:00:30]} Kd7 {[%emt 0:00:30]} 30. Nxf5 {[%emt 0:00:30]} Nc5+ {[%emt 0:00:30]} 0-1

[Event "26th Troya Open 2018"]
[Site "Canakkale"]
[Date "2018.08.05"]
[Round "4.21"]
[White "Yilmaz, Kayra"]
[Black "Kocakaplan, Emre"]
[Result "1/2-1/2"]
[ECO "B20"]
[WhiteElo "1485"]
[BlackElo "1591"]
[Annotator "NA RC"]
[PlyCount "116"]
[EventDate "2018.08.06"]
[EventType "swiss"]
[EventCountry "TUR"]
[SourceTitle "playchess.com"]
[Source "ChessBase"]
[SourceQuality "1"]
[TimeControl "5400+30"]

1. e4 {[%emt 0:00:30]} c5 {[%emt 0:05:30]} 2. Nf3 {[%emt 0:01:30]} Nc6 {[%emt 0:00:30]} 3. Bc4 {[%emt 0:00:30]} e6 {[%emt 0:01:30]} 4. Nc3 {[%emt 0:02:30]} a6 {[%emt 0:00:30]} 5. a4 {[%emt 0:05:30]} Qc7 {[%emt 0:00:30]} 6. O-O {[%emt 0:02:30]} Nf6 {[%emt 0:01:30]} 7. d3 {[%emt 0:10:30]} Be7 {[%emt 0:00:30]} 8. Be3 {[%emt 0:03:30]} d6 {[%emt 0:01:30]} 9. Nd2 {[%emt 0:05:30]} O-O {[%emt 0:00:30]} 10. f4 {[%emt 0:04:30]} Rd8 {[%emt 0:00:30]} 11. Ba2 {[%emt 0:01:30]} d5 {[%emt 0:03:30]} 12. e5 {[%emt 0:01:30]} Nd7 {[%emt 0:01:30]} 13. Ne2 {[%emt 0:03:30]} b5 {[%emt 0:03:30]} 14. Ng3 {[%emt 0:05:30]} Bb7 {[%emt 0:06:30]} 15. Qg4 {[%emt 0:03:30]} Kh8 {[%emt 0:01:30]} 16. Nf3 {[%emt 0:02:30]} Nd4 {[%emt 0:16:30]} 17. Bxd4 {[%emt 0:12:30]} cxd4 {[%emt 0:00:00]} 18. f5 {[%emt 0:02:30]} Nxe5 {[%emt 0:22:00]} 19. Nxe5 {[%emt 0:05:30]} Qxe5 {[%emt 0:00:30]} 20. Rae1 {[%emt 0:06:46]} Qc7 {[%emt 0:03:30]} 21. fxe6 {[%emt 0:04:57]} f6 {[%emt 0:02:30]} 22. Nf5 {[%emt 0:01:06]} Rg8 {[%emt 0:00:30]} 23. Rf3 {[%emt 0:02:53]} Bb4 {[%emt 0:03:30]} 24. Re2 {[%emt 0:04:50]} Bd6 {[%emt 0:02:30]} 25. Rh3 {[%emt 0:00:21]} g6 {[%emt 0:01:30]} 26. Nh6 {[%emt 0:01:31]} Rg7 {[%emt 0:00:00]} 27. Qh4 {[%emt 0:01:06]} Be5 {[%emt 0:01:18]} 28. Nf7+ {[%emt 0:01:00]} Rxf7 {[%emt 0:00:37]} 29. exf7 {[%emt 0:00:32]} Qxf7 {[%emt 0:00:30]} 30. Rf3 {[%emt 0:00:00]} Qg7 {[%emt 0:00:32]} 31. c3 {[%emt 0:00:50]} dxc3 {[%emt 0:01:59]} 32. d4 {[%emt 0:00:29]} g5 {[%emt 0:00:05]} 33. Qf2 {[%emt 0:00:13]} Bf4 {[%emt 0:03:15]} 34. g3 {[%emt 0:01:08]} Bd2 {[%emt 0:07:20]} 35. bxc3 {[%emt 0:00:43]} g4 {[%emt 0:00:18]} 36. Rf5 {[%emt 0:01:20]} Bxc3 {[%emt 0:01:15]} 37. Rxf6 {[%emt 0:00:15]} Rc8 {[%emt 0:02:37]} 38. Rc2 {[%emt 0:00:22]} b4 {[%emt 0:01:02]} 39. Kh1 {[%emt 0:00:29]} Bc6 {[%emt 0:02:44]} 40. Bb3 {[%emt 0:01:09]} Qe7 {[%emt 0:03:23]} 41. Kg2 {[%emt 0:01:05]} Qe4+ {[%emt 0:00:13]} 42. Kf1 {[%emt 0:00:14]} Bxd4 {[%emt 0:00:43]} 43. Rf8+ {[%emt 0:00:45]} Kg7 {[%emt 0:00:18]} 44. Qf7+ {[%emt 0:00:59]} Kh6 {[%emt 0:00:02]} 45. Rxc8 {[%emt 0:00:36]} Qh1+ {[%emt 0:00:02]} 46. Ke2 {[%emt 0:00:21]} Qe4+ {[%emt 0:00:35]} 47. Kd1 {[%emt 0:00:57]} Qd3+ {[%emt 0:00:19]} 48. Kc1 {[%emt 0:00:44]} Qe3+ {[%emt 0:00:51]} 49. Kb1 {[%emt 0:00:41]} Qxb3+ {[%emt 0:00:37]} 50. Kc1 {[%emt 0:00:20]} Qe3+ {[%emt 0:00:57]} 51. Kd1 {[%emt 0:00:35]} Qg1+ {[%emt 0:01:19]} 52. Ke2 {[%emt 0:00:36]} Qe3+ {[%emt 0:00:01]} 53. Kd1 {[%emt 0:00:39]} Qg1+ {[%emt 0:00:30]} 54. Ke2 {[%emt 0:00:19]} Qe3+ {[%emt 0:00:19]} 55. Kd1 {[%emt 0:00:00]} Qg1+ {[%emt 0:01:00]} 56. Ke2 {[%emt 0:00:00]} Qe3+ {[%emt 0:00:28]} 57. Kd1 {[%emt 0:00:00]} Qg1+ {[%emt 0:00:25]} 58. Ke2 {[%emt 0:00:00]} Qe3+ {[%emt 0:00:22]} 1/2-1/2

[Event "26th Troya Open 2018"]
[Site "Canakkale"]
[Date "2018.08.08"]
[Round "5.1"]
[White "Mgeladze, Tamaz"]
[Black "Arat, Ufuk Sezen"]
[Result "1/2-1/2"]
[ECO "A30"]
[WhiteElo "2400"]
[BlackElo "2386"]
[Annotator "NA"]
[PlyCount "43"]
[EventDate "2018.08.06"]
[EventType "swiss"]
[EventCountry "TUR"]
[SourceTitle "playchess.com"]
[Source "ChessBase"]
[SourceQuality "1"]
[TimeControl "5400+30"]

1. c4 {[%emt 0:00:30]} b6 {[%emt 0:00:30]} 2. Nf3 {[%emt 0:00:30]} Bb7 {[%emt 0:00:30]} 3. g3 {[%emt 0:00:30]} c5 {[%emt 0:00:30]} 4. Bg2 {[%emt 0:00:30]} Nf6 {[%emt 0:00:30]} 5. Nc3 {[%emt 0:00:30]} g6 {[%emt 0:00:30]} 6. O-O {[%emt 0:00:30]} Bg7 {[%emt 0:00:30]} 7. d3 {[%emt 0:00:30]} O-O {[%emt 0:02:30]} 8. Bd2 {[%emt 0:10:30]} Nc6 {[%emt 0:06:30]} 9. a3 {[%emt 0:02:30]} d5 {[%emt 0:01:30]} 10. cxd5 {[%emt 0:00:30]} Nxd5 {[%emt 0:00:30]} 11. Rc1 {[%emt 0:01:30]} Rc8 {[%emt 0:03:30]} 12. Qa4 {[%emt 0:00:30]} e6 {[%emt 0:25:30]} 13. Rfe1 {[%emt 0:05:30]} a6 {[%emt 0:06:30]} 14. Bg5 {[%emt 0:05:30]} Qd7 {[%emt 0:04:30]} 15. Qh4 {[%emt 0:08:30]} Nd4 {[%emt 0:02:30]} 16. Nxd4 {[%emt 0:08:30]} Bxd4 {[%emt 0:14:30]} 17. Nxd5 {[%emt 0:13:30]} Bxd5 {[%emt 0:00:30]} 18. Bf6 {[%emt 0:05:30]} Bxg2 {[%emt 0:06:30]} 19. Kxg2 {[%emt 0:00:30]} Qd5+ {[%emt 0:02:16]} 20. Kg1 {[%emt 0:00:30]} Bxf6 {[%emt 0:00:30]} 21. Qxf6 {[%emt 0:00:00]} Qd4 {[%emt 0:00:56]} 22. Qxd4 {[%emt 0:00:00]} 1/2-1/2

[Event "26th Troya Open 2018"]
[Site "Canakkale"]
[Date "2018.08.08"]
[Round "5.2"]
[White "Abdulla, Khayala"]
[Black "Benidze, Davit"]
[Result "0-1"]
[ECO "B15"]
[WhiteElo "2245"]
[BlackElo "2488"]
[Annotator "ChessBase"]
[PlyCount "96"]
[EventDate "2018.08.06"]
[EventType "swiss"]
[EventCountry "TUR"]
[SourceTitle "playchess.com"]
[Source "ChessBase"]
[SourceQuality "1"]
[TimeControl "5400+30"]

1. e4 {[%emt 0:00:30]} c6 {[%emt 0:00:30]} 2. d4 {[%emt 0:00:30]} g6 {[%emt 0:00:30]} 3. Nc3 {[%emt 0:00:30]} d5 {[%emt 0:00:30]} 4. e5 {[%emt 0:00:30]} Bg7 {[%emt 0:00:30]} 5. f4 {[%emt 0:00:30]} Nh6 {[%emt 0:00:30]} 6. Nf3 {[%emt 0:00:30]} Bg4 {[%emt 0:00:30]} 7. Bd3 {[%emt 0:12:30]} O-O {[%emt 0:02:30]} 8. O-O {[%emt 0:02:30]} f6 {[%emt 0:00:30]} 9. h3 {[%emt 0:07:30]} Bxf3 {[%emt 0:00:30]} 10. Rxf3 {[%emt 0:00:00]} fxe5 {[%emt 0:02:30]} 11. fxe5 {[%emt 0:01:00]} Nd7 {[%emt 0:07:30]} 12. Rxf8+ {[%emt 0:03:30]} Nxf8 {[%emt 0:00:00]} 13. Be3 {[%emt 0:08:30]} c5 {[%emt 0:01:00]} 14. dxc5 {[%emt 0:07:30]} Nf7 {[%emt 0:01:30]} 15. Ne2 {[%emt 0:04:30]} Nxe5 {[%emt 0:00:30]} 16. c3 {[%emt 0:00:30]} Ne6 {[%emt 0:04:30]} 17. Nf4 {[%emt 0:06:30]} Nxf4 {[%emt 0:00:30]} 18. Bxf4 {[%emt 0:00:30]} Qc7 {[%emt 0:00:00]} 19. b4 {[%emt 0:02:30]} Rf8 {[%emt 0:03:00]} 20. Bh2 {[%emt 0:03:30]} Qd7 {[%emt 0:09:30]} 21. Qd2 {[%emt 0:04:30]} d4 {[%emt 0:13:30]} 22. Bxe5 {[%emt 0:02:30]} Bxe5 {[%emt 0:05:30]} 23. Bc4+ {[%emt 0:00:00]} Kg7 {[%emt 0:01:30]} 24. Rd1 {[%emt 0:02:00]} Rf4 {[%emt 0:02:30]} 25. Qe2 {[%emt 0:04:30]} Qf5 {[%emt 0:01:30]} 26. Bd3 {[%emt 0:02:30]} Qg5 {[%emt 0:00:30]} 27. Re1 {[%emt 0:00:30]} Bf6 {[%emt 0:00:30]} 28. c4 {[%emt 0:02:30]} Qg3 {[%emt 0:00:30]} 29. Rf1 {[%emt 0:01:30]} Rxf1+ {[%emt 0:00:30]} 30. Kxf1 {[%emt 0:00:53]} Qf4+ {[%emt 0:01:30]} 31. Kg1 {[%emt 0:01:24]} Qc1+ {[%emt 0:01:30]} 32. Kf2 {[%emt 0:02:14]} Qa3 {[%emt 0:02:30]} 33. Qd2 {[%emt 0:00:04]} a5 {[%emt 0:00:30]} 34. b5 {[%emt 0:03:23]} Qxc5 {[%emt 0:00:30]} 35. Qxa5 {[%emt 0:00:17]} Bh4+ {[%emt 0:00:30]} 36. g3 {[%emt 0:06:20]} Qg5 {[%emt 0:02:30]} 37. gxh4 {[%emt 0:00:58]} Qe3+ {[%emt 0:00:30]} 38. Kg2 {[%emt 0:00:30]} Qxd3 {[%emt 0:00:00]} 39. Qe1 {[%emt 0:01:00]} Kf6 {[%emt 0:06:00]} 40. Qf1+ {[%emt 0:02:35]} Qxf1+ {[%emt 0:00:30]} 41. Kxf1 {[%emt 0:00:30]} Ke5 {[%emt 0:00:30]} 42. b6 {[%emt 0:00:30]} d3 {[%emt 0:00:30]} 43. a4 {[%emt 0:00:30]} Kd4 {[%emt 0:00:30]} 44. a5 {[%emt 0:00:30]} Kc3 {[%emt 0:00:00]} 45. a6 {[%emt 0:03:50]} d2 {[%emt 0:00:00]} 46. a7 {[%emt 0:01:37]} d1=Q+ {[%emt 0:00:00]} 47. Kf2 {[%emt 0:01:31]} Qd8 {[%emt 0:00:00]} 48. c5 {[%emt 0:00:00]} Kd4 {[%emt 0:00:00]} 0-1

[Event "26th Troya Open 2018"]
[Site "Canakkale"]
[Date "2018.08.08"]
[Round "5.4"]
[White "Eminov, Orkhan"]
[Black "Olcum, Ahmet"]
[Result "1-0"]
[ECO "B07"]
[WhiteElo "2272"]
[BlackElo "2274"]
[Annotator "NA"]
[PlyCount "47"]
[EventDate "2018.08.06"]
[EventType "swiss"]
[EventCountry "TUR"]
[SourceTitle "playchess.com"]
[Source "ChessBase"]
[SourceQuality "1"]
[TimeControl "5400+30"]

1. e4 {[%emt 0:00:30]} d6 {[%emt 0:00:30]} 2. d4 {[%emt 0:00:30]} Nf6 {[%emt 0:00:30]} 3. Nc3 {[%emt 0:00:30]} e5 {[%emt 0:00:30]} 4. Nge2 {[%emt 0:04:30]} Be7 {[%emt 0:09:30]} 5. g3 {[%emt 0:03:30]} c6 {[%emt 0:09:30]} 6. a4 {[%emt 0:02:30]} Na6 {[%emt 0:15:30]} 7. Bg2 {[%emt 0:01:30]} Nb4 {[%emt 0:04:30]} 8. h3 {[%emt 0:03:30]} O-O {[%emt 0:06:30]} 9. Be3 {[%emt 0:17:30]} exd4 {[%emt 0:07:30]} 10. Nxd4 {[%emt 0:17:30]} d5 {[%emt 0:00:30]} 11. e5 {[%emt 0:06:30]} Nd7 {[%emt 0:02:30]} 12. e6 {[%emt 0:05:30]} Nf6 {[%emt 0:09:30]} 13. exf7+ {[%emt 0:00:30]} Rxf7 {[%emt 0:00:00]} 14. Nb3 {[%emt 0:00:30]} Bf5 {[%emt 0:09:00]} 15. Rc1 {[%emt 0:00:30]} c5 {[%emt 0:01:30]} 16. Nxc5 {[%emt 0:08:30]} Bxc5 {[%emt 0:14:47]} 17. Bxc5 {[%emt 0:00:30]} Nxc2+ {[%emt 0:03:48]} 18. Rxc2 {[%emt 0:01:30]} Bxc2 {[%emt 0:00:04]} 19. Qxc2 {[%emt 0:00:30]} d4 {[%emt 0:00:04]} 20. Nb5 {[%emt 0:00:00]} Rc8 {[%emt 0:00:06]} 21. Qf5 {[%emt 0:11:37]} Qa5+ {[%emt 0:02:59]} 22. Kf1 {[%emt 0:01:50]} Re8 {[%emt 0:00:05]} 23. Bf3 {[%emt 0:04:21]} Ne4 {[%emt 0:01:26]} 24. Qd5 {[%emt 0:03:56]} 1-0

[Event "26th Troya Open 2018"]
[Site "Canakkale"]
[Date "2018.08.08"]
[Round "5.10"]
[White "Albayrak, Kerem"]
[Black "Lomsadze, Davit"]
[Result "0-1"]
[ECO "A33"]
[WhiteElo "1901"]
[BlackElo "2352"]
[Annotator "NA"]
[PlyCount "52"]
[EventDate "2018.08.06"]
[EventType "swiss"]
[EventCountry "TUR"]
[SourceTitle "playchess.com"]
[Source "ChessBase"]
[SourceQuality "1"]
[TimeControl "5400+30"]

1. d4 {[%emt 0:00:30]} Nf6 {[%emt 0:00:30]} 2. Nf3 {[%emt 0:00:30]} c5 {[%emt 0:00:30]} 3. c4 {[%emt 0:00:30]} cxd4 {[%emt 0:00:30]} 4. Nxd4 {[%emt 0:00:30]} Nc6 {[%emt 0:00:30]} 5. Nc3 {[%emt 0:00:30]} e6 {[%emt 0:11:30]} 6. g3 {[%emt 0:01:30]} Bc5 {[%emt 0:04:30]} 7. Nb3 {[%emt 0:03:30]} Be7 {[%emt 0:00:30]} 8. Bg2 {[%emt 0:00:30]} O-O {[%emt 0:00:30]} 9. O-O {[%emt 0:00:30]} b6 {[%emt 0:00:30]} 10. e4 {[%emt 0:07:30]} Ba6 {[%emt 0:01:30]} 11. Nd2 {[%emt 0:09:30]} Rc8 {[%emt 0:01:30]} 12. b3 {[%emt 0:01:30]} Ne5 {[%emt 0:08:30]} 13. Qe2 {[%emt 0:06:30]} d6 {[%emt 0:01:30]} 14. Bb2 {[%emt 0:00:30]} Nc6 {[%emt 0:01:30]} 15. Rfe1 {[%emt 0:02:30]} Nd7 {[%emt 0:00:30]} 16. Nd5 {[%emt 0:11:30]} exd5 {[%emt 0:05:30]} 17. exd5 {[%emt 0:00:30]} Nce5 {[%emt 0:02:30]} 18. f4 {[%emt 0:09:30]} Ng6 {[%emt 0:00:30]} 19. h4 {[%emt 0:06:30]} Re8 {[%emt 0:02:30]} 20. Bh3 {[%emt 0:01:30]} Bf6 {[%emt 0:01:30]} 21. Ne4 {[%emt 0:10:30]} Rxe4 {[%emt 0:01:30]} 22. Qxe4 {[%emt 0:00:30]} Bxb2 {[%emt 0:00:30]} 23. Rab1 {[%emt 0:00:30]} Bf6 {[%emt 0:00:00]} 24. h5 {[%emt 0:00:30]} Ngf8 {[%emt 0:00:00]} 25. Qf3 {[%emt 0:05:54]} b5 {[%emt 0:00:30]} 26. cxb5 {[%emt 0:02:17]} Qb6+ {[%emt 0:01:30]} 0-1

[Event "26th Troya Open 2018"]
[Site "Canakkale"]
[Date "2018.08.08"]
[Round "5.12"]
[White "Kocak, Can"]
[Black "Ozen, Bahadir"]
[Result "0-1"]
[ECO "B08"]
[WhiteElo "2001"]
[BlackElo "2302"]
[Annotator "NA"]
[PlyCount "80"]
[EventDate "2018.08.06"]
[EventType "swiss"]
[EventCountry "TUR"]
[SourceTitle "playchess.com"]
[Source "ChessBase"]
[SourceQuality "1"]
[TimeControl "5400+30"]

1. e4 {[%emt 0:00:30]} g6 {[%emt 0:00:30]} 2. d4 {[%emt 0:00:30]} Bg7 {[%emt 0:00:30]} 3. Nc3 {[%emt 0:00:30]} d6 {[%emt 0:00:30]} 4. Be3 {[%emt 0:00:30]} a6 {[%emt 0:00:30]} 5. a4 {[%emt 0:00:30]} Nf6 {[%emt 0:00:30]} 6. h3 {[%emt 0:00:30]} O-O {[%emt 0:00:30]} 7. Nf3 {[%emt 0:00:30]} Nc6 {[%emt 0:00:30]} 8. Be2 {[%emt 0:00:30]} e5 {[%emt 0:07:30]} 9. O-O {[%emt 0:03:30]} exd4 {[%emt 0:00:30]} 10. Nxd4 {[%emt 0:00:00]} Bd7 {[%emt 0:04:30]} 11. f4 {[%emt 0:11:00]} Nxe4 {[%emt 0:02:30]} 12. Nxe4 {[%emt 0:00:30]} Re8 {[%emt 0:00:00]} 13. Nxc6 {[%emt 0:14:30]} Bxc6 {[%emt 0:02:00]} 14. Nxd6 {[%emt 0:00:30]} Qxd6 {[%emt 0:06:30]} 15. Bc1 {[%emt 0:03:30]} Qb4 {[%emt 0:07:30]} 16. Kh1 {[%emt 0:17:30]} Bxb2 {[%emt 0:03:30]} 17. Rb1 {[%emt 0:10:30]} Qe7 {[%emt 0:01:30]} 18. Bd3 {[%emt 0:05:30]} Bxc1 {[%emt 0:03:30]} 19. Qxc1 {[%emt 0:00:00]} Qe3 {[%emt 0:00:30]} 20. Kh2 {[%emt 0:01:00]} Qxc1 {[%emt 0:01:30]} 21. Rfxc1 {[%emt 0:00:00]} Rad8 {[%emt 0:00:00]} 22. Rb4 {[%emt 0:01:00]} Re3 {[%emt 0:01:00]} 23. Rf1 {[%emt 0:02:30]} f6 {[%emt 0:00:30]} 24. Rf2 {[%emt 0:04:30]} Kg7 {[%emt 0:00:30]} 25. Kg1 {[%emt 0:00:30]} Rd5 {[%emt 0:00:30]} 26. Rf1 {[%emt 0:00:30]} Ra5 {[%emt 0:01:30]} 27. Kf2 {[%emt 0:00:30]} Re7 {[%emt 0:00:30]} 28. Ra1 {[%emt 0:00:30]} b5 {[%emt 0:00:30]} 29. Ra3 {[%emt 0:01:30]} Be8 {[%emt 0:00:30]} 30. Rc3 {[%emt 0:05:40]} bxa4 {[%emt 0:00:30]} 31. Ra3 {[%emt 0:00:27]} Rc5 {[%emt 0:02:30]} 32. Rb7 {[%emt 0:02:26]} g5 {[%emt 0:01:30]} 33. fxg5 {[%emt 0:00:32]} fxg5 {[%emt 0:00:30]} 34. Ra7 {[%emt 0:01:47]} Re6 {[%emt 0:01:30]} 35. Ra2 {[%emt 0:00:55]} Bb5 {[%emt 0:00:30]} 36. Kf3 {[%emt 0:00:39]} h5 {[%emt 0:00:30]} 37. g3 {[%emt 0:00:44]} Kh6 {[%emt 0:01:30]} 38. Kf2 {[%emt 0:00:21]} Kg7 {[%emt 0:03:30]} 39. Ra8 {[%emt 0:00:48]} Rce5 {[%emt 0:00:00]} 40. Ra7 {[%emt 0:00:08]} Rf6+ {[%emt 0:00:00]} 0-1

[Event "26th Troya Open 2018"]
[Site "Canakkale"]
[Date "2018.08.08"]
[Round "5.13"]
[White "Erke, Mustafa Yigit"]
[Black "Sar, Can"]
[Result "1/2-1/2"]
[ECO "B27"]
[WhiteElo "1599"]
[BlackElo "1786"]
[Annotator "NA"]
[PlyCount "111"]
[EventDate "2018.08.06"]
[EventType "swiss"]
[EventCountry "TUR"]
[SourceTitle "playchess.com"]
[Source "ChessBase"]
[SourceQuality "1"]
[TimeControl "5400+30"]

1. e4 {[%emt 0:00:30]} c5 {[%emt 0:00:30]} 2. Nf3 {[%emt 0:00:30]} g6 {[%emt 0:00:30]} 3. d4 {[%emt 0:00:30]} cxd4 {[%emt 0:00:30]} 4. Qxd4 {[%emt 0:00:30]} Nf6 {[%emt 0:00:30]} 5. e5 {[%emt 0:00:30]} Nc6 {[%emt 0:00:30]} 6. Qh4 {[%emt 0:00:30]} Nxe5 {[%emt 0:00:30]} 7. Nxe5 {[%emt 0:00:30]} Qa5+ {[%emt 0:00:30]} 8. Nc3 {[%emt 0:00:30]} Qxe5+ {[%emt 0:00:30]} 9. Be2 {[%emt 0:00:30]} Bg7 {[%emt 0:00:30]} 10. Nb5 {[%emt 0:00:30]} O-O {[%emt 0:00:30]} 11. Bf4 {[%emt 0:00:30]} Qxb2 {[%emt 0:00:30]} 12. O-O {[%emt 0:00:30]} Nd5 {[%emt 0:05:30]} 13. Bh6 {[%emt 0:07:30]} Bxh6 {[%emt 0:01:30]} 14. Qxh6 {[%emt 0:00:30]} a6 {[%emt 0:01:30]} 15. Rab1 {[%emt 0:06:30]} Qg7 {[%emt 0:00:30]} 16. Qd2 {[%emt 0:00:30]} axb5 {[%emt 0:01:30]} 17. Qxd5 {[%emt 0:00:00]} e6 {[%emt 0:00:30]} 18. Qb3 {[%emt 0:11:00]} b4 {[%emt 0:00:00]} 19. Qxb4 {[%emt 0:01:30]} Rxa2 {[%emt 0:00:00]} 20. Bf3 {[%emt 0:00:30]} Rxc2 {[%emt 0:00:30]} 21. Rfc1 {[%emt 0:00:30]} Rxc1+ {[%emt 0:00:30]} 22. Rxc1 {[%emt 0:00:00]} d5 {[%emt 0:00:00]} 23. g3 {[%emt 0:04:00]} Rd8 {[%emt 0:00:00]} 24. Qc5 {[%emt 0:19:30]} Qf8 {[%emt 0:00:00]} 25. Qc7 {[%emt 0:00:30]} b5 {[%emt 0:00:00]} 26. Rc6 {[%emt 0:01:30]} b4 {[%emt 0:01:30]} 27. Rb6 {[%emt 0:00:30]} Rd7 {[%emt 0:00:30]} 28. Qb8 {[%emt 0:02:30]} Rd8 {[%emt 0:00:30]} 29. Rxb4 {[%emt 0:02:30]} Qd6 {[%emt 0:00:30]} 30. Be2 {[%emt 0:02:30]} Qxb8 {[%emt 0:00:30]} 31. Rxb8 {[%emt 0:00:00]} Rf8 {[%emt 0:00:30]} 32. Bb5 {[%emt 0:00:00]} e5 {[%emt 0:00:30]} 33. Rb6 {[%emt 0:01:30]} Bf5 {[%emt 0:01:30]} 34. Rd6 {[%emt 0:09:30]} Be6 {[%emt 0:00:30]} 35. Bc6 {[%emt 0:00:30]} Rc8 {[%emt 0:01:30]} 36. f4 {[%emt 0:02:30]} exf4 {[%emt 0:00:30]} 37. gxf4 {[%emt 0:00:00]} Kf8 {[%emt 0:00:30]} 38. Bb7 {[%emt 0:05:00]} Rc4 {[%emt 0:00:30]} 39. Rd8+ {[%emt 0:01:30]} Ke7 {[%emt 0:00:00]} 40. Rh8 {[%emt 0:00:30]} Rxf4 {[%emt 0:00:00]} 41. Rxh7 {[%emt 0:00:00]} Rb4 {[%emt 0:00:30]} 42. Ba6 {[%emt 0:01:00]} d4 {[%emt 0:00:30]} 43. Bd3 {[%emt 0:00:30]} Kf6 {[%emt 0:00:30]} 44. Rh4 {[%emt 0:01:59]} g5 {[%emt 0:00:30]} 45. Rh6+ {[%emt 0:01:15]} Ke5 {[%emt 0:00:30]} 46. Rh5 {[%emt 0:01:04]} Kf4 {[%emt 0:00:30]} 47. h4 {[%emt 0:00:46]} Rb3 {[%emt 0:00:30]} 48. Ba6 {[%emt 0:04:16]} g4 {[%emt 0:00:30]} 49. Ra5 {[%emt 0:01:02]} Kg3 {[%emt 0:00:30]} 50. h5 {[%emt 0:00:52]} Rb1+ {[%emt 0:00:30]} 51. Bf1 {[%emt 0:05:40]} Bc4 {[%emt 0:00:30]} 52. Rf5 {[%emt 0:06:39]} Bxf1 {[%emt 0:02:30]} 53. Rxf1 {[%emt 0:00:30]} Rb5 {[%emt 0:00:00]} 54. h6 {[%emt 0:01:24]} Rh5 {[%emt 0:00:00]} 55. Rf6 {[%emt 0:00:54]} d3 {[%emt 0:02:30]} 56. Rxf7 {[%emt 0:00:32]} 1/2-1/2